[Event "Late-Titled-Tuesday-Blitz-October-03-2023"]
[Site "Chess.com"]
[Date "2023.10.03"]
[Round "11"]
[White "Bauman_Guy"]
[Black "GM_dmitrij"]
[Result "1-0"]
[WhiteElo "2874"]
[BlackElo "3030"]
[TimeControl "180+1"]
[EndTime "16:02:27 PDT"]
[Termination "Bauman_Guy won by resignation"]

1. e4 {[%clk 0:03:00.9]} 1... e5 {[%clk 0:02:58.7]} 2. Nf3 {[%clk 0:03:01.4]}
2... Nc6 {[%clk 0:02:59.6]} 3. Bb5 {[%clk 0:03:01.7]} 3... a6 {[%clk 0:02:58.4]}
4. Ba4 {[%clk 0:03:01.9]} 4... Nf6 {[%clk 0:02:59]} 5. O-O {[%clk 0:03:02.3]}
5... b5 {[%clk 0:02:55.3]} 6. Bb3 {[%clk 0:03:02]} 6... Bc5 {[%clk 0:02:56.2]}
7. d3 {[%clk 0:03:00.3]} 7... d6 {[%clk 0:02:56]} 8. a4 {[%clk 0:03:00.9]} 8...
Rb8 {[%clk 0:02:51.5]} 9. axb5 {[%clk 0:03:00.7]} 9... axb5 {[%clk 0:02:52.4]}
10. Nc3 {[%clk 0:03:01.4]} 10... h6 {[%clk 0:02:51]} 11. Be3 {[%clk 0:03:00.3]}
11... O-O {[%clk 0:02:48.6]} 12. Nd5 {[%clk 0:02:56.6]} 12... Be6 {[%clk
0:02:37.7]} 13. Bxc5 {[%clk 0:02:31.4]} 13... dxc5 {[%clk 0:02:38.6]} 14. Nxf6+
{[%clk 0:02:29.5]} 14... Qxf6 {[%clk 0:02:39.5]} 15. Bxe6 {[%clk 0:02:29.3]}
15... Qxe6 {[%clk 0:02:38.2]} 16. Ra6 {[%clk 0:02:28.7]} 16... Rb6 {[%clk
0:02:35.2]} 17. Ra3 {[%clk 0:02:17.2]} 17... Rd8 {[%clk 0:02:25.9]} 18. Qe2
{[%clk 0:02:13.8]} 18... c4 {[%clk 0:02:16.3]} 19. Rfa1 {[%clk 0:02:04.6]} 19...
b4 {[%clk 0:02:09.9]} 20. Ra8 {[%clk 0:02:02.8]} 20... cxd3 {[%clk 0:02:00.9]}
21. Qxd3 {[%clk 0:01:57.4]} 21... Rxa8 {[%clk 0:01:49]} 22. Rxa8+ {[%clk
0:01:56.9]} 22... Kh7 {[%clk 0:01:49.9]} 23. Qd5 {[%clk 0:01:42.4]} 23... Qxd5
{[%clk 0:01:01.5]} 24. exd5 {[%clk 0:01:43.3]} 24... e4 {[%clk 0:01:01.8]} 25.
Nd2 {[%clk 0:01:28.2]} 25... Ne7 {[%clk 0:00:56.1]} 26. Rd8 {[%clk 0:01:22.7]}
26... Rb5 {[%clk 0:00:48]} 27. Nxe4 {[%clk 0:00:59.8]} 27... Rxd5 {[%clk
0:00:48]} 28. Rxd5 {[%clk 0:00:59.4]} 28... Nxd5 {[%clk 0:00:48.9]} 29. Kf1
{[%clk 0:00:53.3]} 29... Kg6 {[%clk 0:00:49.2]} 30. Ke2 {[%clk 0:00:53.7]} 30...
Kf5 {[%clk 0:00:49.7]} 31. Nc5 {[%clk 0:00:50.2]} 31... Ke5 {[%clk 0:00:50]} 32.
g3 {[%clk 0:00:45.6]} 32... Kd4 {[%clk 0:00:44.2]} 33. Nb3+ {[%clk 0:00:45.6]}
33... Kc4 {[%clk 0:00:44.3]} 34. Nd2+ {[%clk 0:00:45.9]} 34... Kd4 {[%clk
0:00:38.1]} 35. Nb3+ {[%clk 0:00:44.4]} 35... Kc4 {[%clk 0:00:38.4]} 36. Nd2+
{[%clk 0:00:43.9]} 36... Kb5 {[%clk 0:00:38.6]} 37. Kd3 {[%clk 0:00:43.7]} 37...
Nb6 {[%clk 0:00:35]} 38. b3 {[%clk 0:00:38.7]} 38... Nd7 {[%clk 0:00:29.5]} 39.
Kd4 {[%clk 0:00:34.5]} 39... c5+ {[%clk 0:00:23]} 40. Kd5 {[%clk 0:00:34.4]}
40... Nf6+ {[%clk 0:00:23.4]} 41. Kd6 {[%clk 0:00:31.7]} 41... Ng4 {[%clk
0:00:24.3]} 42. Ke7 {[%clk 0:00:30]} 42... f5 {[%clk 0:00:22.3]} 43. Kf7 {[%clk
0:00:28.7]} 43... g5 {[%clk 0:00:13.2]} 44. Kg6 {[%clk 0:00:26]} 44... Nxf2
{[%clk 0:00:13.1]} 45. Kxh6 {[%clk 0:00:20.9]} 45... g4 {[%clk 0:00:13.4]} 46.
Kg5 {[%clk 0:00:20.2]} 46... Nd1 {[%clk 0:00:12.3]} 47. Nc4 {[%clk 0:00:17.2]}
47... Kc6 {[%clk 0:00:12.8]} 48. Kxf5 {[%clk 0:00:16.8]} 48... Nf2 {[%clk
0:00:13.7]} 49. Ne3 {[%clk 0:00:15]} 49... c4 {[%clk 0:00:12.5]} 50. Nxg4 {[%clk
0:00:11.8]} 50... Nd1 {[%clk 0:00:11.3]} 51. h4 {[%clk 0:00:10.8]} 51... Kc5
{[%clk 0:00:10]} 52. h5 {[%clk 0:00:10.6]} 1-0

[Event "Late-Titled-Tuesday-Blitz-October-03-2023"]
[Site "Chess.com"]
[Date "2023.10.03"]
[Round "11"]
[White "Quattroporte300"]
[Black "angryspacevoid"]
[Result "1/2-1/2"]
[WhiteElo "2384"]
[BlackElo "2534"]
[TimeControl "180+1"]
[EndTime "16:02:28 PDT"]
[Termination "Game drawn by repetition"]

1. e4 {[%clk 0:02:55.6]} 1... c5 {[%clk 0:02:56.7]} 2. Nf3 {[%clk 0:02:55.9]}
2... Nf6 {[%clk 0:02:56]} 3. Nc3 {[%clk 0:02:53]} 3... e6 {[%clk 0:02:55.8]} 4.
g3 {[%clk 0:02:51.3]} 4... d5 {[%clk 0:02:53.7]} 5. exd5 {[%clk 0:02:51]} 5...
exd5 {[%clk 0:02:44.9]} 6. Bb5+ {[%clk 0:02:46.6]} 6... Nc6 {[%clk 0:02:37.1]}
7. O-O {[%clk 0:02:46.3]} 7... Bg4 {[%clk 0:02:31.9]} 8. Re1+ {[%clk 0:02:41]}
8... Be7 {[%clk 0:02:32.2]} 9. Qe2 {[%clk 0:02:36.8]} 9... Kf8 {[%clk
0:02:08.3]} 10. Bxc6 {[%clk 0:02:32.5]} 10... bxc6 {[%clk 0:02:09.2]} 11. d3
{[%clk 0:02:21.5]} 11... h5 {[%clk 0:01:57.6]} 12. Bg5 {[%clk 0:02:20]} 12...
Ng8 {[%clk 0:01:38.6]} 13. h4 {[%clk 0:02:15.3]} 13... Bxg5 {[%clk 0:01:33.3]}
14. hxg5 {[%clk 0:02:12.7]} 14... h4 {[%clk 0:01:16.7]} 15. gxh4 {[%clk
0:02:05.4]} 15... Rxh4 {[%clk 0:01:12.7]} 16. Kg2 {[%clk 0:01:43.3]} 16... Rh3
{[%clk 0:01:07.5]} 17. Qe3 {[%clk 0:01:33.2]} 17... Qd6 {[%clk 0:00:52.4]} 18.
Qe5 {[%clk 0:01:07.6]} 18... Qd7 {[%clk 0:00:28.1]} 19. Nh2 {[%clk 0:00:52.9]}
19... Be6 {[%clk 0:00:19.3]} 20. Ne2 {[%clk 0:00:43.4]} 20... Rh5 {[%clk
0:00:07.7]} 21. Nf4 {[%clk 0:00:35]} 21... Bh3+ {[%clk 0:00:07.2]} 22. Kh1
{[%clk 0:00:32.6]} 22... Rh8 {[%clk 0:00:07.8]} 23. Re3 {[%clk 0:00:25.6]} 23...
Bf5 {[%clk 0:00:07.1]} 24. Rae1 {[%clk 0:00:24.9]} 24... Rh7 {[%clk 0:00:03.3]}
25. Kg1 {[%clk 0:00:24.7]} 25... g6 {[%clk 0:00:03]} 26. Qc3 {[%clk 0:00:19.8]}
26... d4 {[%clk 0:00:02.9]} 27. Qxc5+ {[%clk 0:00:19.5]} 27... Kg7 {[%clk
0:00:03.4]} 28. Qe5+ {[%clk 0:00:18.9]} 28... Kf8 {[%clk 0:00:03.3]} 29. Rg3
{[%clk 0:00:16.2]} 29... Ne7 {[%clk 0:00:03.5]} 30. Qc5 {[%clk 0:00:15]} 30...
Re8 {[%clk 0:00:03.6]} 31. c3 {[%clk 0:00:13.8]} 31... Kg8 {[%clk 0:00:03.6]}
32. Qxd4 {[%clk 0:00:13.2]} 32... Nd5 {[%clk 0:00:04]} 33. Rxe8+ {[%clk
0:00:05.9]} 33... Qxe8 {[%clk 0:00:04.9]} 34. Nxd5 {[%clk 0:00:03.8]} 34... cxd5
{[%clk 0:00:05.5]} 35. Qe3 {[%clk 0:00:03.4]} 35... Qa8 {[%clk 0:00:04.8]} 36.
Qd4 {[%clk 0:00:03.2]} 36... Be6 {[%clk 0:00:04.7]} 37. Re3 {[%clk 0:00:03.7]}
37... Qb8 {[%clk 0:00:04.4]} 38. Nf3 {[%clk 0:00:03.6]} 38... Qxb2 {[%clk
0:00:04.5]} 39. Qxa7 {[%clk 0:00:03.2]} 39... Qb1+ {[%clk 0:00:04.9]} 40. Kg2
{[%clk 0:00:03.7]} 40... Qh1+ {[%clk 0:00:04.7]} 41. Kg3 {[%clk 0:00:03.8]}
41... Rh3+ {[%clk 0:00:05.1]} 42. Kf4 {[%clk 0:00:04.4]} 42... Rh4+ {[%clk
0:00:04.2]} 43. Ke5 {[%clk 0:00:04.3]} 43... Rg4 {[%clk 0:00:03.6]} 44. Qb8+
{[%clk 0:00:04.8]} 44... Kh7 {[%clk 0:00:03.7]} 45. Kd6 {[%clk 0:00:03.9]} 45...
Qh5 {[%clk 0:00:03.3]} 46. Ke7 {[%clk 0:00:03.7]} 46... Rf4 {[%clk 0:00:03.7]}
47. Qf8 {[%clk 0:00:03.6]} 47... Rxf3 {[%clk 0:00:03.2]} 48. Rxf3 {[%clk
0:00:03.8]} 48... Qxf3 {[%clk 0:00:04]} 49. Qh6+ {[%clk 0:00:04]} 49... Kg8
{[%clk 0:00:04]} 50. Qf8+ {[%clk 0:00:04.7]} 50... Kh7 {[%clk 0:00:04.9]} 51.
Qh6+ {[%clk 0:00:04.9]} 51... Kg8 {[%clk 0:00:05.8]} 52. Qf8+ {[%clk 0:00:05.3]}
52... Kh7 {[%clk 0:00:06.5]} 1/2-1/2

[Event "Late-Titled-Tuesday-Blitz-October-03-2023"]
[Site "Chess.com"]
[Date "2023.10.03"]
[Round "11"]
[White "falzehope0"]
[Black "protectiago"]
[Result "0-1"]
[WhiteElo "2321"]
[BlackElo "2085"]
[TimeControl "180+1"]
[EndTime "16:02:32 PDT"]
[Termination "protectiago won on time"]

1. d4 {[%clk 0:02:49.7]} 1... Nf6 {[%clk 0:03:00]} 2. e3 {[%clk 0:02:33.5]} 2...
g6 {[%clk 0:02:58.9]} 3. Bd3 {[%clk 0:01:50.8]} 3... Bg7 {[%clk 0:02:54.6]} 4.
f4 {[%clk 0:01:48]} 4... d5 {[%clk 0:02:54.3]} 5. Nf3 {[%clk 0:01:47.3]} 5...
O-O {[%clk 0:02:55]} 6. O-O {[%clk 0:01:46]} 6... c5 {[%clk 0:02:55.8]} 7. c3
{[%clk 0:01:45.8]} 7... Nc6 {[%clk 0:02:56.4]} 8. Nbd2 {[%clk 0:01:44.3]} 8...
Qb6 {[%clk 0:02:52.7]} 9. Kh1 {[%clk 0:01:42.5]} 9... Bg4 {[%clk 0:02:52.7]} 10.
Qe1 {[%clk 0:01:40.6]} 10... Bxf3 {[%clk 0:02:52.2]} 11. Nxf3 {[%clk 0:01:39.2]}
11... Rad8 {[%clk 0:02:45.2]} 12. f5 {[%clk 0:01:35.8]} 12... Ne4 {[%clk
0:02:43.7]} 13. fxg6 {[%clk 0:01:32.7]} 13... fxg6 {[%clk 0:02:36.7]} 14. b3
{[%clk 0:01:27.6]} 14... e5 {[%clk 0:02:36.5]} 15. c4 {[%clk 0:01:26]} 15...
exd4 {[%clk 0:02:35]} 16. cxd5 {[%clk 0:01:22.2]} 16... dxe3 {[%clk 0:02:08.7]}
17. Bxe4 {[%clk 0:01:15.6]} 17... Bxa1 {[%clk 0:02:04.1]} 18. Bxe3 {[%clk
0:01:15.2]} 18... Rde8 {[%clk 0:01:47.8]} 19. Bh6 {[%clk 0:01:04.3]} 19... Bg7
{[%clk 0:01:43.8]} 20. Bxg7 {[%clk 0:01:02.2]} 20... Kxg7 {[%clk 0:01:44.3]} 21.
dxc6 {[%clk 0:01:01.1]} 21... Rf4 {[%clk 0:01:41]} 22. Qa1+ {[%clk 0:00:56.7]}
22... Kh6 {[%clk 0:01:38.6]} 23. Bd5 {[%clk 0:00:37.7]} 23... bxc6 {[%clk
0:01:37.6]} 24. Bc4 {[%clk 0:00:37.4]} 24... Ref8 {[%clk 0:01:23.4]} 25. Qe5
{[%clk 0:00:31.8]} 25... Qd8 {[%clk 0:01:18.6]} 26. Qxc5 {[%clk 0:00:27.5]}
26... Qf6 {[%clk 0:00:58.3]} 27. Qe3 {[%clk 0:00:22.4]} 27... g5 {[%clk
0:00:57.8]} 28. h3 {[%clk 0:00:18.7]} 28... Kg7 {[%clk 0:00:55]} 29. Re1 {[%clk
0:00:17]} 29... h5 {[%clk 0:00:40.5]} 30. Qxa7+ {[%clk 0:00:15.9]} 30... Kh6
{[%clk 0:00:38.3]} 31. Re6 {[%clk 0:00:15.5]} 31... g4 {[%clk 0:00:35]} 32.
Rxf6+ {[%clk 0:00:15.3]} 32... R8xf6 {[%clk 0:00:35.1]} 33. hxg4 {[%clk
0:00:15.4]} 33... hxg4 {[%clk 0:00:35.6]} 34. Ng1 {[%clk 0:00:11.7]} 34... g3
{[%clk 0:00:35.7]} 35. Qd7 {[%clk 0:00:07.4]} 35... Rh4+ {[%clk 0:00:33.6]} 36.
Nh3 {[%clk 0:00:07.7]} 36... c5 {[%clk 0:00:17]} 37. Kg1 {[%clk 0:00:07.5]}
37... Re4 {[%clk 0:00:17]} 38. Qd2+ {[%clk 0:00:07]} 38... Kg7 {[%clk
0:00:12.3]} 39. Qg5+ {[%clk 0:00:05.9]} 39... Rg6 {[%clk 0:00:12.6]} 40. Qc1
{[%clk 0:00:03.9]} 40... Rd4 {[%clk 0:00:08.7]} 41. Be2 {[%clk 0:00:02.4]} 41...
Re6 {[%clk 0:00:06.8]} 42. Bf3 {[%clk 0:00:02.5]} 42... Red6 {[%clk 0:00:03.5]}
43. Nf4 {[%clk 0:00:01.6]} 43... Kf6 {[%clk 0:00:02.8]} 44. Ne2 {[%clk
0:00:01.3]} 44... Rd2 {[%clk 0:00:02.9]} 0-1

[Event "Late-Titled-Tuesday-Blitz-October-03-2023"]
[Site "Chess.com"]
[Date "2023.10.03"]
[Round "11"]
[White "venturov"]
[Black "Chempiblinka"]
[Result "1/2-1/2"]
[WhiteElo "2453"]
[BlackElo "2291"]
[TimeControl "180+1"]
[EndTime "16:02:35 PDT"]
[Termination "Game drawn - insufficient material"]

1. Nf3 {[%clk 0:03:00.9]} 1... Nf6 {[%clk 0:02:59.3]} 2. c4 {[%clk 0:02:52.7]}
2... g6 {[%clk 0:03:00.2]} 3. d4 {[%clk 0:02:52]} 3... Bg7 {[%clk 0:03:01.1]} 4.
g3 {[%clk 0:02:52.4]} 4... d6 {[%clk 0:03:01.9]} 5. Bg2 {[%clk 0:02:52.9]} 5...
O-O {[%clk 0:03:02.8]} 6. Nc3 {[%clk 0:02:53.2]} 6... c6 {[%clk 0:02:57.9]} 7.
e4 {[%clk 0:02:52.9]} 7... Qa5 {[%clk 0:02:53.2]} 8. O-O {[%clk 0:02:44]} 8...
Qh5 {[%clk 0:02:53.5]} 9. Ng5 {[%clk 0:02:43.8]} 9... Qxd1 {[%clk 0:02:45]} 10.
Rxd1 {[%clk 0:02:44.7]} 10... h6 {[%clk 0:02:44.7]} 11. Nf3 {[%clk 0:02:42.7]}
11... c5 {[%clk 0:02:45.1]} 12. e5 {[%clk 0:02:18.2]} 12... dxe5 {[%clk
0:02:41.5]} 13. dxe5 {[%clk 0:02:18.3]} 13... Ng4 {[%clk 0:02:41.5]} 14. Nd5
{[%clk 0:02:18.9]} 14... Nc6 {[%clk 0:02:37.6]} 15. h3 {[%clk 0:02:00.1]} 15...
Ngxe5 {[%clk 0:02:36.9]} 16. Nxe5 {[%clk 0:02:00.5]} 16... Bxe5 {[%clk
0:02:37.1]} 17. Bxh6 {[%clk 0:02:00.2]} 17... Re8 {[%clk 0:02:20.9]} 18. Bf4
{[%clk 0:01:42]} 18... Bxf4 {[%clk 0:02:05.5]} 19. gxf4 {[%clk 0:01:40.6]} 19...
Rb8 {[%clk 0:02:02.4]} 20. Nc7 {[%clk 0:01:27.9]} 20... Rf8 {[%clk 0:02:02]} 21.
b3 {[%clk 0:01:28.2]} 21... Nd4 {[%clk 0:01:54.6]} 22. Nd5 {[%clk 0:01:21]}
22... e6 {[%clk 0:01:50.8]} 23. Nc3 {[%clk 0:01:17.7]} 23... b6 {[%clk
0:01:44.2]} 24. Nb5 {[%clk 0:01:00.6]} 24... Ne2+ {[%clk 0:01:38.6]} 25. Kf1
{[%clk 0:01:00.4]} 25... Nxf4 {[%clk 0:01:38.6]} 26. Nxa7 {[%clk 0:00:52.6]}
26... Nxg2 {[%clk 0:01:38.9]} 27. Kxg2 {[%clk 0:00:52.7]} 27... Bb7+ {[%clk
0:01:38.9]} 28. Kg3 {[%clk 0:00:49.4]} 28... Rfd8 {[%clk 0:01:34.6]} 29. Nb5
{[%clk 0:00:49.4]} 29... Bc6 {[%clk 0:01:25.1]} 30. Nc3 {[%clk 0:00:40.4]} 30...
Kg7 {[%clk 0:01:22.3]} 31. Ne2 {[%clk 0:00:30.8]} 31... f5 {[%clk 0:01:18.7]}
32. h4 {[%clk 0:00:27.7]} 32... Kf6 {[%clk 0:01:18.6]} 33. f4 {[%clk 0:00:26.3]}
33... Be4 {[%clk 0:01:18.2]} 34. Ng1 {[%clk 0:00:24.5]} 34... Bc2 {[%clk
0:01:16.3]} 35. Rdc1 {[%clk 0:00:17.6]} 35... Rd2 {[%clk 0:01:15.7]} 36. Nf3
{[%clk 0:00:17.4]} 36... Re2 {[%clk 0:01:11.6]} 37. Re1 {[%clk 0:00:15.8]} 37...
Rxe1 {[%clk 0:01:09]} 38. Rxe1 {[%clk 0:00:16.7]} 38... Ra8 {[%clk 0:01:09.4]}
39. Ng5 {[%clk 0:00:13.8]} 39... Be4 {[%clk 0:01:04.3]} 40. Re2 {[%clk
0:00:09.7]} 40... Ra5 {[%clk 0:00:56.1]} 41. a4 {[%clk 0:00:09.8]} 41... e5
{[%clk 0:00:54.1]} 42. Nxe4+ {[%clk 0:00:08.1]} 42... fxe4 {[%clk 0:00:55]} 43.
Rxe4 {[%clk 0:00:08.3]} 43... exf4+ {[%clk 0:00:55.8]} 44. Kxf4 {[%clk 0:00:09]}
44... Ra8 {[%clk 0:00:55.9]} 45. Re5 {[%clk 0:00:06.3]} 45... Rh8 {[%clk
0:00:54.5]} 46. Rd5 {[%clk 0:00:05.7]} 46... Rxh4+ {[%clk 0:00:54.3]} 47. Kg3
{[%clk 0:00:06.5]} 47... Re4 {[%clk 0:00:51]} 48. a5 {[%clk 0:00:06.7]} 48...
bxa5 {[%clk 0:00:49.8]} 49. Rxc5 {[%clk 0:00:06.9]} 49... Re3+ {[%clk
0:00:50.1]} 50. Kf4 {[%clk 0:00:07.4]} 50... Rxb3 {[%clk 0:00:49]} 51. Rxa5
{[%clk 0:00:07.4]} 51... g5+ {[%clk 0:00:47.3]} 52. Kg4 {[%clk 0:00:07.3]} 52...
Rb4 {[%clk 0:00:44.8]} 53. Ra6+ {[%clk 0:00:04.1]} 53... Ke5 {[%clk 0:00:44.2]}
54. Kxg5 {[%clk 0:00:04.7]} 54... Rxc4 {[%clk 0:00:44.9]} 55. Ra5+ {[%clk
0:00:05.1]} 55... Kd4 {[%clk 0:00:44.5]} 56. Ra8 {[%clk 0:00:04.6]} 56... Rc5+
{[%clk 0:00:44.7]} 57. Kg6 {[%clk 0:00:04.6]} 57... Rd5 {[%clk 0:00:44.4]} 58.
Rf8 {[%clk 0:00:04.9]} 58... Re5 {[%clk 0:00:42.6]} 59. Rf6 {[%clk 0:00:05]}
59... Re3 {[%clk 0:00:42.5]} 60. Rf5 {[%clk 0:00:05.2]} 60... Re5 {[%clk
0:00:42.7]} 61. Rxe5 {[%clk 0:00:04.8]} 61... Kxe5 {[%clk 0:00:42.6]} 1/2-1/2

[Event "Late-Titled-Tuesday-Blitz-October-03-2023"]
[Site "Chess.com"]
[Date "2023.10.03"]
[Round "11"]
[White "Inepton_Fermion"]
[Black "santosalberto1987"]
[Result "1-0"]
[WhiteElo "2421"]
[BlackElo "2479"]
[TimeControl "180+1"]
[EndTime "16:02:38 PDT"]
[Termination "Inepton_Fermion won by resignation"]

1. Nf3 {[%clk 0:03:00.9]} 1... d5 {[%clk 0:03:00]} 2. b3 {[%clk 0:03:01.3]} 2...
Bf5 {[%clk 0:02:59]} 3. Bb2 {[%clk 0:03:01.1]} 3... e6 {[%clk 0:02:58.3]} 4. g3
{[%clk 0:03:01.2]} 4... Nf6 {[%clk 0:02:58.2]} 5. Bg2 {[%clk 0:03:01.7]} 5... h6
{[%clk 0:02:58.5]} 6. O-O {[%clk 0:03:02.1]} 6... Nbd7 {[%clk 0:02:58.7]} 7. d3
{[%clk 0:03:02.6]} 7... Be7 {[%clk 0:02:58.2]} 8. Nbd2 {[%clk 0:03:03.1]} 8...
O-O {[%clk 0:02:58.3]} 9. Qe1 {[%clk 0:03:01.5]} 9... Bh7 {[%clk 0:02:57.7]} 10.
e4 {[%clk 0:03:01.3]} 10... c6 {[%clk 0:02:57.8]} 11. Qe2 {[%clk 0:03:01.1]}
11... a5 {[%clk 0:02:57.7]} 12. a4 {[%clk 0:03:00.7]} 12... Nc5 {[%clk 0:02:55]}
13. e5 {[%clk 0:02:47.5]} 13... Nfd7 {[%clk 0:02:53.7]} 14. Nd4 {[%clk 0:02:34]}
14... Na6 {[%clk 0:02:46.8]} 15. Kh1 {[%clk 0:02:26.4]} 15... c5 {[%clk
0:02:45.9]} 16. Nb5 {[%clk 0:02:20.9]} 16... Qb6 {[%clk 0:02:44.6]} 17. f4
{[%clk 0:02:16.2]} 17... Nc7 {[%clk 0:02:44.5]} 18. c4 {[%clk 0:02:01.2]} 18...
Nxb5 {[%clk 0:02:35.5]} 19. axb5 {[%clk 0:02:00.8]} 19... d4 {[%clk 0:02:30.4]}
20. Be4 {[%clk 0:01:27.5]} 20... Bxe4+ {[%clk 0:02:29.7]} 21. Nxe4 {[%clk
0:01:28.4]} 21... Qc7 {[%clk 0:02:29.7]} 22. Bc1 {[%clk 0:01:15.7]} 22... Nb6
{[%clk 0:02:26.8]} 23. Qg4 {[%clk 0:01:05.1]} 23... Kh7 {[%clk 0:02:19.1]} 24.
f5 {[%clk 0:00:40.6]} 24... Qxe5 {[%clk 0:02:13.4]} 25. f6 {[%clk 0:00:39.8]}
25... Bxf6 {[%clk 0:02:04.8]} 26. Rxf6 {[%clk 0:00:26.5]} 26... gxf6 {[%clk
0:02:05.7]} 27. Qh4 {[%clk 0:00:26.6]} 27... Nd7 {[%clk 0:01:31.3]} 28. Qxh6+
{[%clk 0:00:23]} 28... Kg8 {[%clk 0:01:31]} 29. Bd2 {[%clk 0:00:13.1]} 29... Qf5
{[%clk 0:01:29.8]} 30. Kg2 {[%clk 0:00:09.3]} 30... Qg6 {[%clk 0:01:29.1]} 31.
Qh4 {[%clk 0:00:09.7]} 31... Kg7 {[%clk 0:01:25.2]} 32. Rf1 {[%clk 0:00:06.5]}
32... Rh8 {[%clk 0:01:25.2]} 33. Qf4 {[%clk 0:00:05.7]} 33... e5 {[%clk
0:00:57.4]} 34. Qf3 {[%clk 0:00:05.8]} 34... Qh5 {[%clk 0:00:54.6]} 35. Qxh5
{[%clk 0:00:02.9]} 35... Rxh5 {[%clk 0:00:55.5]} 36. Nd6 {[%clk 0:00:03.5]}
36... b6 {[%clk 0:00:48.7]} 37. g4 {[%clk 0:00:02.9]} 37... Rhh8 {[%clk
0:00:47.4]} 38. Nf5+ {[%clk 0:00:02.8]} 38... Kf8 {[%clk 0:00:47.3]} 39. Ra1
{[%clk 0:00:02.6]} 39... Kg8 {[%clk 0:00:40.6]} 40. h4 {[%clk 0:00:02.6]} 40...
Nf8 {[%clk 0:00:40.9]} 41. h5 {[%clk 0:00:02.6]} 41... Ne6 {[%clk 0:00:41.1]}
42. Kf3 {[%clk 0:00:03.3]} 42... Ng5+ {[%clk 0:00:39.2]} 43. Bxg5 {[%clk
0:00:02.8]} 43... fxg5 {[%clk 0:00:39.3]} 44. Ke4 {[%clk 0:00:02.9]} 44... f6
{[%clk 0:00:39.1]} 45. Kd5 {[%clk 0:00:03.4]} 45... Kf7 {[%clk 0:00:39.3]} 46.
Ra2 {[%clk 0:00:02.1]} 46... Rac8 {[%clk 0:00:37.4]} 47. Ke4 {[%clk 0:00:02.5]}
47... Rcd8 {[%clk 0:00:36.8]} 48. Rf2 {[%clk 0:00:01.5]} 48... Ke6 {[%clk
0:00:31.4]} 49. Ra2 {[%clk 0:00:02.2]} 49... Rh7 {[%clk 0:00:30.4]} 50. Ra4
{[%clk 0:00:02.7]} 50... Ra7 {[%clk 0:00:29.7]} 51. Ra2 {[%clk 0:00:03.3]} 51...
Rda8 {[%clk 0:00:29.4]} 52. Ra4 {[%clk 0:00:03.9]} 52... Kd7 {[%clk 0:00:26.6]}
53. Ng3 {[%clk 0:00:04.1]} 53... Ke6 {[%clk 0:00:24.7]} 54. Nf5 {[%clk
0:00:04.2]} 54... Rh7 {[%clk 0:00:24.1]} 55. Ng3 {[%clk 0:00:04.4]} 55... Rah8
{[%clk 0:00:24.2]} 56. Nf5 {[%clk 0:00:04.7]} 56... Rxh5 {[%clk 0:00:23.8]} 57.
gxh5 {[%clk 0:00:05.6]} 57... Rxh5 {[%clk 0:00:24.3]} 58. Ng7+ {[%clk
0:00:04.5]} 58... Kf7 {[%clk 0:00:24.6]} 59. Nxh5 {[%clk 0:00:05.4]} 59... Kg6
{[%clk 0:00:25.4]} 60. Ng3 {[%clk 0:00:05]} 60... g4 {[%clk 0:00:25.8]} 61. Ra1
{[%clk 0:00:03.9]} 61... Kg5 {[%clk 0:00:26.7]} 62. Nf5 {[%clk 0:00:04.1]} 1-0

[Event "Late-Titled-Tuesday-Blitz-October-03-2023"]
[Site "Chess.com"]
[Date "2023.10.03"]
[Round "11"]
[White "GaiozNigalidze"]
[Black "BigAl"]
[Result "0-1"]
[WhiteElo "2726"]
[BlackElo "2581"]
[TimeControl "180+1"]
[EndTime "16:02:54 PDT"]
[Termination "BigAl won by checkmate"]

1. d4 {[%clk 0:01:54.1]} 1... Nf6 {[%clk 0:02:36.3]} 2. Nf3 {[%clk 0:01:54]}
2... g6 {[%clk 0:02:36.6]} 3. g3 {[%clk 0:01:54.8]} 3... Bg7 {[%clk 0:02:37.4]}
4. Bg2 {[%clk 0:01:55.6]} 4... O-O {[%clk 0:02:37.7]} 5. O-O {[%clk 0:01:56.5]}
5... d6 {[%clk 0:02:38.4]} 6. c3 {[%clk 0:01:56.2]} 6... Nbd7 {[%clk 0:02:35.7]}
7. Nbd2 {[%clk 0:01:56.4]} 7... e5 {[%clk 0:02:35.3]} 8. dxe5 {[%clk 0:01:56.8]}
8... dxe5 {[%clk 0:02:35.2]} 9. e4 {[%clk 0:01:56.7]} 9... b6 {[%clk 0:02:34.8]}
10. Re1 {[%clk 0:01:54]} 10... Bb7 {[%clk 0:02:32.6]} 11. Qc2 {[%clk 0:01:53]}
11... Nc5 {[%clk 0:02:17.6]} 12. Nxe5 {[%clk 0:01:50.6]} 12... Re8 {[%clk
0:02:17.1]} 13. f4 {[%clk 0:01:43.1]} 13... Nfd7 {[%clk 0:02:14.2]} 14. Ndf3
{[%clk 0:01:31]} 14... Nxe5 {[%clk 0:01:42.9]} 15. Nxe5 {[%clk 0:01:30.5]} 15...
Bxe5 {[%clk 0:01:41.1]} 16. fxe5 {[%clk 0:01:30.3]} 16... Qd3 {[%clk 0:01:36.8]}
17. Qf2 {[%clk 0:01:13]} 17... Nxe4 {[%clk 0:01:22.6]} 18. Bxe4 {[%clk
0:00:58.3]} 18... Bxe4 {[%clk 0:01:23.2]} 19. Bh6 {[%clk 0:00:55.6]} 19... Qf3
{[%clk 0:01:11.9]} 20. Qxf3 {[%clk 0:00:32.5]} 20... Bxf3 {[%clk 0:01:12.7]} 21.
Kf2 {[%clk 0:00:33.1]} 21... Bg4 {[%clk 0:01:08.5]} 22. Bg5 {[%clk 0:00:30.2]}
22... Re6 {[%clk 0:00:57.7]} 23. Bf6 {[%clk 0:00:30.3]} 23... Rae8 {[%clk
0:00:54.5]} 24. Re3 {[%clk 0:00:27.9]} 24... h5 {[%clk 0:00:46.7]} 25. Rae1
{[%clk 0:00:27.9]} 25... Rc6 {[%clk 0:00:42.5]} 26. Rd3 {[%clk 0:00:25.3]} 26...
Kh7 {[%clk 0:00:34.6]} 27. h4 {[%clk 0:00:25.4]} 27... g5 {[%clk 0:00:28.1]} 28.
hxg5 {[%clk 0:00:23.8]} 28... Kg6 {[%clk 0:00:28.8]} 29. b3 {[%clk 0:00:23]}
29... b5 {[%clk 0:00:21.6]} 30. Rde3 {[%clk 0:00:18.4]} 30... a5 {[%clk
0:00:19.7]} 31. Rc1 {[%clk 0:00:17.4]} 31... Be6 {[%clk 0:00:18.4]} 32. Rd3
{[%clk 0:00:17.3]} 32... a4 {[%clk 0:00:18.6]} 33. bxa4 {[%clk 0:00:15.4]} 33...
bxa4 {[%clk 0:00:18.5]} 34. a3 {[%clk 0:00:15.3]} 34... Rb8 {[%clk 0:00:17.4]}
35. Ke3 {[%clk 0:00:15.5]} 35... Rb3 {[%clk 0:00:17.1]} 36. Rd8 {[%clk
0:00:12.2]} 36... Rcxc3+ {[%clk 0:00:13.4]} 37. Rxc3 {[%clk 0:00:12.4]} 37...
Rxc3+ {[%clk 0:00:14.2]} 38. Kf4 {[%clk 0:00:12.6]} 38... Rc4+ {[%clk
0:00:09.7]} 39. Kf3 {[%clk 0:00:12.8]} 39... Kf5 {[%clk 0:00:09.5]} 40. Kf2
{[%clk 0:00:11]} 40... Rc2+ {[%clk 0:00:08.2]} 41. Ke1 {[%clk 0:00:10.3]} 41...
Rg2 {[%clk 0:00:07.7]} 42. Rh8 {[%clk 0:00:09]} 42... Kg4 {[%clk 0:00:07.6]} 43.
Ra8 {[%clk 0:00:07.1]} 43... Bb3 {[%clk 0:00:07.1]} 44. Rc8 {[%clk 0:00:05.1]}
44... Kxg3 {[%clk 0:00:06.1]} 45. g6 {[%clk 0:00:05.3]} 45... fxg6 {[%clk
0:00:06.3]} 46. Rxc7 {[%clk 0:00:06]} 46... h4 {[%clk 0:00:06.4]} 47. Rc3+
{[%clk 0:00:03.9]} 47... Kg4 {[%clk 0:00:05.5]} 48. Kf1 {[%clk 0:00:02.5]} 48...
h3 {[%clk 0:00:05.3]} 49. Re3 {[%clk 0:00:01.1]} 49... Bc4+ {[%clk 0:00:02.8]}
50. Ke1 {[%clk 0:00:01.2]} 50... Rg1+ {[%clk 0:00:02.8]} 51. Kf2 {[%clk
0:00:01.3]} 51... Rf1# {[%clk 0:00:02.7]} 0-1